[Event "European Blitz-ch 2018"]
[Site "Skopje"]
[Date "2018.12.06"]
[Round "1"]
[White "Tsolakidou, Stavroula"]
[Black "Nenezic, Marko"]
[Result "0-1"]
[ECO "B30"]
[WhiteElo "2387"]
[BlackElo "2515"]
[Annotator "ChessBase"]
[PlyCount "88"]
[EventDate "2018.12.06"]
[EventType "swiss"]
[EventCountry "MKD"]
[SourceTitle "playchess.com"]
[Source "ChessBase"]
[SourceQuality "1"]
[TimeControl "180+2"]

1. e4 {[%emt 0:00:00]} c5 {[%emt 0:00:01]} 2. Nf3 {[%emt 0:00:00]} Nc6 {[%emt 0:00:02]} 3. Bb5 {[%emt 0:00:02]} Nf6 {[%emt 0:00:03]} 4. Bxc6 {[%emt 0:00:08]} dxc6 {[%emt 0:00:02]} 5. d3 {[%emt 0:00:01]} Qc7 {[%emt 0:00:02]} 6. h3 {[%emt 0:00:06]} e5 {[%emt 0:00:03]} 7. Nc3 {[%emt 0:00:12]} h6 {[%emt 0:00:04]} 8. Be3 {[%emt 0:00:05]} Be6 {[%emt 0:00:05]} 9. Qe2 {[%emt 0:00:25]} Be7 {[%emt 0:00:09]} 10. a4 {[%emt 0:00:09]} g5 {[%emt 0:00:23]} 11. Nd2 {[%emt 0:00:12]} Rg8 {[%emt 0:00:40]} 12. a5 {[%emt 0:00:43]} h5 {[%emt 0:00:15]} 13. g3 {[%emt 0:00:21]} g4 {[%emt 0:00:12]} 14. h4 {[%emt 0:00:01]} Nd7 {[%emt 0:00:06]} 15. Nc4 {[%emt 0:00:14]} Nf8 {[%emt 0:00:18]} 16. Nd1 {[%emt 0:00:20]} f5 {[%emt 0:00:26]} 17. exf5 {[%emt 0:00:02]} Bd5 {[%emt 0:00:01]} 18. Rg1 {[%emt 0:00:05]} O-O-O {[%emt 0:00:14]} 19. Bh6 {[%emt 0:00:11]} Nd7 {[%emt 0:00:06]} 20. Nc3 {[%emt 0:00:02]} Bf3 {[%emt 0:00:02]} 21. Qe3 {[%emt 0:00:01]} Rde8 {[%emt 0:00:15]} 22. Kd2 {[%emt 0:00:01]} Bf8 {[%emt 0:00:05]} 23. Bxf8 {[%emt 0:00:02]} Rgxf8 {[%emt 0:00:01]} 24. Qg5 {[%emt 0:00:03]} Nf6 {[%emt 0:00:03]} 25. Rae1 {[%emt 0:00:03]} e4 {[%emt 0:00:06]} 26. dxe4 {[%emt 0:00:07]} Nxe4+ {[%emt 0:00:00]} 27. Nxe4 {[%emt 0:00:01]} Bxe4 {[%emt 0:00:01]} 28. f6 {[%emt 0:00:06]} Bd5 {[%emt 0:00:02]} 29. Ne3 {[%emt 0:00:07]} Qxa5+ {[%emt 0:00:01]} 30. Kc1 {[%emt 0:00:02]} Qa1+ {[%emt 0:00:01]} 31. Kd2 {[%emt 0:00:01]} Qa5+ {[%emt 0:00:01]} 32. c3 {[%emt 0:00:02]} Be4 {[%emt 0:00:02]} 33. Rd1 {[%emt 0:00:03]} Rd8+ {[%emt 0:00:02]} 34. Ke1 {[%emt 0:00:02]} Rxd1+ {[%emt 0:00:01]} 35. Nxd1 {[%emt 0:00:01]} Qb5 {[%emt 0:00:03]} 36. Qe3 {[%emt 0:00:06]} Qc4 {[%emt 0:00:01]} 37. Qf4 {[%emt 0:00:04]} Qe6 {[%emt 0:00:01]} 38. Qe3 {[%emt 0:00:01]} Rxf6 {[%emt 0:00:01]} 39. Kd2 {[%emt 0:00:01]} Rf3 {[%emt 0:00:02]} 40. Qg5 {[%emt 0:00:02]} Qd6+ {[%emt 0:00:02]} 41. Kc1 {[%emt 0:00:01]} Qd3 {[%emt 0:00:01]} 42. Qg8+ {[%emt 0:00:01]} Kc7 {[%emt 0:00:00]} 43. Qg7+ {[%emt 0:00:01]} Kb6 {[%emt 0:00:01]} 44. Ne3 {[%emt 0:00:04]} Qb1+ {[%emt 0:00:01]} 0-1